fUSD/lending_fUSD_20240920
["ID","MTS","AMOUNT","RATE_DAILY","PERIOD"]
[338655792,1726852231423,-179.78,0.00012039,2]
[338655793,1726852231432,-179.78,0.00012042,2]
[338655794,1726852231442,-179.78,0.00012045,2]
[338655795,1726852231452,-179.78,0.00012049,2]
[338655796,1726852231462,-179.78,0.00012052,2]
[338655797,1726852231470,-1014.73949662,0.00012055,2]
[338655798,1726852231482,-1150.95,0.00012055,2]
[338655799,1726852231493,-4592.22575356,0.00012055,2]
[338655800,1726852231504,-563.10986677,0.00012055,2]
[338655801,1726852231619,-20154.04488305,0.00012055,2]
[338655802,1726852231629,-179.78,0.00012055,2]
[338655803,1726852231639,-179.78,0.00012058,2]
[338655804,1726852231650,-179.78,0.00012061,2]
[338655805,1726852231660,-150.0,0.00012062,2]
[338655806,1726852231670,-179.78,0.00012064,2]
[338655808,1726852231680,-150.0,0.00012087,2]
[338655810,1726852231689,-150.0,0.00012112,2]
[338655811,1726852231699,-150.0,0.00012137,2]
[338655813,1726852231709,-150.0,0.00012162,2]
[338655815,1726852231720,-950.0,0.00012181,2]
[338655816,1726852231730,-150.0,0.00012187,2]
[338655818,1726852231740,-225.13,0.00012204,2]
[338655820,1726852231749,-187.27,0.00012209,2]
[338655821,1726852231759,-150.0,0.00012212,2]
[338655822,1726852231769,-150.0,0.00012212,2]
[338655823,1726852231779,-150.0,0.00012237,2]
[338655824,1726852231788,-150.0,0.00012262,2]
[338655825,1726852231797,-152.0,0.00012269,3]
[338655826,1726852231807,-150.0,0.00012287,2]
[338655827,1726852231816,-150.0,0.00012312,2]
[338655828,1726852231827,-150.0,0.00012337,2]
[338655829,1726852231836,-150.0,0.00012362,2]
[338655830,1726852231847,-150.0,0.00012387,2]
[338655831,1726852231856,-150.0,0.00012412,2]
[338655832,1726852231866,-150.0,0.00012437,2]
[338655833,1726852231875,-150.0,0.00012462,2]
[338655834,1726852231885,-150.0,0.00012487,2]
[338655835,1726852231895,-150.0,0.00012512,2]
[338655836,1726852231905,-150.0,0.00012537,2]
[338655837,1726852231914,-150.0,0.00012562,2]
[338655838,1726852231923,-150.0,0.00012587,2]
[338655839,1726852231933,-150.0,0.00012612,2]
[338655840,1726852231943,-150.0,0.00012637,2]
[338655841,1726852231953,-150.0,0.00012662,2]
[338655842,1726852231963,-150.0,0.00012687,2]
[338655843,1726852231972,-150.0,0.00012712,2]
[338655844,1726852231981,-150.0,0.00012737,2]
[338655845,1726852231991,-150.0,0.00012762,2]
[338655846,1726852232000,-152.0,0.00012773,4]
[338655847,1726852232010,-150.0,0.00012787,2]
[338655848,1726852232019,-570.07,0.000128,2]
[338655849,1726852232029,-150.0,0.00012811,2]
[338655850,1726852232038,-150.0,0.00012836,2]
[338655851,1726852232048,-300.0,0.0001286,2]
[338655852,1726852232058,-150.0,0.00012861,2]
[338655853,1726852232067,-11923.00830833,0.0001288,2]
[338655854,1726852232077,-1000.0,0.00012883,2]
[338655855,1726852232087,-150.0,0.00012886,2]
[338655856,1726852232098,-74684.88842727,0.0001289,2]
[338655857,1726852232111,-1354.61142599,0.0001289,2]
[338655858,1726852232485,500.0,0.00012,2]
[338655867,1726852237371,-758.63544005,0.0001289,2]
[338655868,1726852237482,-36156.57749792,0.0001289,2]
[338655869,1726852237494,-256.885,0.0001289,2]
[338655870,1726852237550,-0.96470069,0.0001289,2]
[338655871,1726852237779,-37851.3990686,0.0001289,2]
[338655878,1726852239602,-1199.418278,0.0001289,2]
[338655940,1726852242524,-97736.62016148,0.0001289,2]
[338655941,1726852242533,-12915.86,0.00012893,2]
[338655942,1726852242542,-26593.3161,0.000129,2]
[338655943,1726852242551,-1422.4903,0.000129,2]
[338655944,1726852242560,-25724.2471,0.000129,2]
[338655945,1726852242569,-1723.4823,0.000129,2]
[338655946,1726852242578,-169.09721618,0.000129,2]
[338655947,1726852242587,-359.4196,0.000129,2]
[338655948,1726852242598,-53008.8417,0.000129,2]
[338655949,1726852242607,-1000.0,0.000129,2]
[338655950,1726852242616,-150.0,0.000129,2]
[338655951,1726852242624,-150.0,0.000129,2]
[338655952,1726852242634,-150.0,0.000129,2]
[338655953,1726852242643,-1010.04,0.000129,2]
[338655954,1726852242651,-2264.6606,0.000129,2]
[338655955,1726852242660,-364.53,0.00012906,2]
[338655956,1726852242669,-150.0,0.00012911,2]
[338655957,1726852242678,-150.0,0.00012936,2]
[338655958,1726852242687,-152.63909011,0.00012937,2]
[338655959,1726852242696,-150.0,0.00012961,2]
[338655960,1726852242705,-200.80710641,0.00012973,2]
[338655961,1726852242714,-168.323,0.00012973,2]
[338655962,1726852242723,-196.0,0.00012986,2]
[338655963,1726852242732,-151.0,0.0001299,2]
[338655964,1726852242741,-201.10166491,0.0001299,2]
[338655965,1726852242751,-1342.2805412,0.00012996,2]
[338655966,1726852242761,-500.0,0.00012999,2]
[338655967,1726852242770,-561.68833301,0.00012999,2]
[338655968,1726852242779,-66604.3707879,0.00013,2]
[338655969,1726852242791,-292.35005528,0.00013,2]
[338655970,1726852242802,-1261.31414876,0.00013,2]
[338655971,1726852242817,-2954.13191402,0.00013,2]
[338655972,1726852242826,-6047.73823373,0.00013,2]
[338655974,1726852245344,-1838.8936,0.0001279,2]
[338655975,1726852245354,-47111.61964624,0.00013,2]
[338655976,1726852245365,-46433.12669752,0.00013,2]
[338655977,1726852245375,-3559.9489424,0.00013,2]
[338655978,1726852245459,-567.13,0.00013,2]
[338655979,1726852245470,-69382.86358523,0.00013,2]
[338655980,1726852245521,-472.15550848,0.00013,2]
[338656001,1726852245879,-498.62,0.00013,2]
[338656003,1726852245892,-772.65,0.00013,2]
[338656366,1726852334093,796.0,0.00012002,2]
[338656367,1726852375559,1337.1486,0.00011933,2]
[338656368,1726852381079,278.12,0.00010195,2]
[338656369,1726852402605,-250.0,0.00012104,2]
[338656370,1726852402628,-278.12,0.00012459,2]
[338656371,1726852402651,-796.0,0.00012501,2]
[338656372,1726852402676,-300.0,0.00012789,2]
[338656373,1726852402699,-9383.1375,0.0001279,2]
[338656374,1726852402729,-1724.7934,0.0001279,2]
[338656375,1726852402754,-12523.3107,0.0001279,2]
[338656376,1726852402779,-9667.6802,0.0001279,2]
[338656377,1726852402804,-711.39,0.0001279,2]
[338656378,1726852402830,-150.0,0.0001287,2]
[338656379,1726852402856,-155.17,0.00012878,2]
[338656380,1726852402880,-150.0,0.00012895,2]
[338656381,1726852402903,-3910.3982,0.000129,2]
[338656382,1726852403497,-3589.6018,0.000129,2]
[338656383,1726852403521,-26383.0302,0.000129,2]
[338656384,1726852403543,-160.49761344,0.00012973,2]
[338656385,1726852403565,-500.0,0.00012973,2]
[338656386,1726852403587,-500.0,0.00012973,2]
[338656387,1726852403609,-200.0,0.00012973,2]
[338656388,1726852403632,-342.73,0.00012986,2]
[338656389,1726852403657,-300.0,0.00012992,2]
[338656390,1726852403680,-1601.5037265,0.00012996,2]
[338656391,1726852403702,-328.2313951,0.00012996,2]
[338656392,1726852403727,-456.474932,0.00012996,2]
[338656393,1726852403755,-341.47763238,0.00012999,2]
[338656394,1726852403779,-880.56313359,0.00012999,2]
[338656395,1726852403801,-2004.65598259,0.00012999,2]
[338656396,1726852403823,-150.0,0.00012999,2]
[338656397,1726852403844,-530.0,0.00013,2]
[338656398,1726852403869,-1731.2335844,0.00013,2]
[338656399,1726852404030,-38361.07486859,0.00013,2]
[338656400,1726852404056,-1638.92513141,0.00013,2]
[338656401,1726852430412,500.0,0.00022999,120]
[338656402,1726852430460,500.0,0.00022999,120]
[338656403,1726852430747,500.0,0.00022999,120]
[338656404,1726852430798,500.0,0.00022999,120]
[338656405,1726852431075,197.74,0.00022999,120]
[338656406,1726852431123,500.0,0.00022999,120]
[338656407,1726852431455,388.04,0.00022999,120]
[338656408,1726852434001,501.31174587,0.00022999,120]
[338656409,1726852440193,500.0,0.00022999,120]
[338656410,1726852440591,500.0,0.00022999,120]
[338656411,1726852441177,500.0,0.00022999,120]
[338656412,1726852441310,-184.82,0.00012416,2]
[338656413,1726852441335,-39815.18,0.00013,2]
[338656414,1726852441529,514.7309435,0.00022999,120]
[338656415,1726852442072,-40000.0,0.00013,2]
[338656416,1726852442778,500.0,0.00022999,120]
[338656417,1726852442805,-300.0,0.00012999,2]
[338656418,1726852442830,-39700.0,0.00013,2]
[338656419,1726852443110,500.0,0.00022999,120]
[338656420,1726852443446,364.85,0.00022999,120]
[338656421,1726852443718,-40000.0,0.00013,2]
[338656422,1726852444155,496.47979193,0.00022999,120]
[338656423,1726852444610,-40000.0,0.00013,2]
[338656424,1726852445561,-500.0,0.00012896,2]
[338656425,1726852445587,-39500.0,0.00013,2]
[338656426,1726852446505,-40000.0,0.00013,2]
[338656427,1726852447128,500.0,0.00022999,120]
[338656428,1726852447367,500.0,0.00022999,120]
[338656429,1726852448583,179.55385063,0.00022999,120]
[338656430,1726852452572,-200.0,0.00012896,2]
[338656431,1726852452598,-679.0,0.00013,2]
[338656432,1726852454271,153.6,0.000149,31]
[338656433,1726852454376,153.6,0.000149,31]
[338656434,1726852454422,153.6,0.000149,31]
[338656435,1726852454488,153.6,0.000149,31]
[338656436,1726852454524,153.6,0.000149,31]
[338656437,1726852454560,153.6,0.000149,31]
[338656438,1726852454596,153.6,0.000149,31]
[338656439,1726852454651,153.6,0.000149,31]
[338656440,1726852454721,153.6,0.000149,31]
[338656441,1726852456708,500.0,0.00022999,120]
[338656442,1726852457051,500.0,0.00022999,120]
[338656443,1726852457395,500.0,0.00022999,120]
[338656444,1726852457709,500.0,0.00022999,120]
[338656445,1726852458020,500.0,0.00022999,120]
[338656446,1726852458400,500.0,0.00022999,120]
[338656447,1726852458752,500.0,0.00022999,120]
[338656448,1726852459091,500.0,0.00022999,120]
[338656449,1726852459415,500.0,0.00022999,120]
[338656450,1726852459796,500.0,0.00022999,120]
[338656451,1726852460130,500.0,0.00022999,120]
[338656452,1726852460479,359.05,0.00022999,120]
[338656453,1726852463519,500.0,0.00022999,120]
[338656454,1726852468304,500.0,0.00022999,120]
[338656455,1726852469595,500.0,0.00022999,120]
[338656456,1726852469935,500.0,0.00022999,120]
[338656457,1726852470280,574.34,0.00022999,120]
[338656458,1726852472867,1115.56,0.00022999,120]
[338656459,1726852473188,1115.56,0.00022999,120]
[338656460,1726852473548,1115.56,0.00022999,120]
[338656461,1726852473872,1115.56,0.00022999,120]
[338656462,1726852473921,500.0,0.00022999,120]
[338656463,1726852474235,375.96,0.00022999,120]
[338656464,1726852474285,1115.56,0.00022999,120]
[338656465,1726852474570,1115.56,0.00022999,120]
[338656466,1726852474898,1115.56,0.00022999,120]
[338656467,1726852475215,1115.56,0.00022999,120]
[338656468,1726852475536,1115.56,0.00022999,120]
[338656469,1726852475886,1115.56,0.00022999,120]
[338656470,1726852476182,500.0,0.00022999,120]
[338656471,1726852476229,1115.56,0.00022999,120]
[338656472,1726852476536,287.63,0.00022999,120]
[338656473,1726852476580,1115.56,0.00022999,120]
[338656474,1726852477369,1115.56,0.00022999,120]
[338656475,1726852477825,1115.56,0.00022999,120]
[338656476,1726852478066,1115.56,0.00022999,120]
[338656477,1726852478338,1115.56,0.00022999,120]
[338656478,1726852478661,1115.56,0.00022999,120]
[338656479,1726852478981,1115.56,0.00022999,120]
[338656480,1726852479527,500.0,0.00022999,120]
[338656481,1726852479632,1115.56,0.00022999,120]
[338656482,1726852479848,500.0,0.00022999,120]
[338656483,1726852479966,1115.56,0.00022999,120]
[338656484,1726852480178,500.0,0.00022999,120]
[338656485,1726852480307,1115.56,0.00022999,120]
[338656486,1726852480549,500.0,0.00022999,120]
[338656487,1726852480635,1115.56,0.00022999,120]
[338656488,1726852480893,500.0,0.00022999,120]
[338656489,1726852480955,1115.56,0.00022999,120]
[338656490,1726852481234,500.0,0.00022999,120]
[338656491,1726852481288,1115.69,0.00022999,120]
[338656492,1726852481560,500.0,0.00022999,120]
[338656493,1726852481886,500.0,0.00022999,120]
[338656494,1726852482257,500.0,0.00022999,120]
[338656495,1726852482594,500.0,0.00022999,120]
[338656496,1726852482925,500.0,0.00022999,120]
[338656497,1726852483247,500.0,0.00022999,120]
[338656498,1726852483591,500.0,0.00022999,120]
[338656499,1726852483936,500.0,0.00022999,120]
[338656500,1726852484314,500.0,0.00022999,120]
[338656501,1726852484637,500.0,0.00022999,120]
[338656502,1726852484956,500.0,0.00022999,120]
[338656503,1726852485304,500.0,0.00022999,120]
[338656504,1726852485642,500.0,0.00022999,120]
[338656505,1726852486023,500.0,0.00022999,120]
[338656506,1726852486696,259.97,0.00022999,120]
[338656507,1726852488717,500.0,0.00011164,2]
[338656508,1726852489248,500.0,0.00022999,120]
[338656509,1726852492110,500.0,0.00022999,120]
[338656510,1726852492455,500.0,0.00022999,120]
[338656511,1726852492761,500.0,0.00022999,120]
[338656512,1726852493084,500.0,0.00022999,120]
[338656513,1726852493728,500.0,0.00022999,120]
[338656514,1726852494190,500.0,0.00022999,120]
[338656515,1726852494523,500.0,0.00022999,120]
[338656516,1726852494588,500.0,0.00022999,120]
[338656517,1726852494872,315.99,0.00022999,120]
[338656518,1726852494935,500.0,0.00022999,120]
[338656519,1726852495276,500.0,0.00022999,120]
[338656520,1726852495595,500.0,0.00022999,120]
[338656521,1726852495923,500.0,0.00022999,120]
[338656522,1726852496318,500.0,0.00022999,120]
[338656523,1726852496630,500.0,0.00022999,120]
[338656524,1726852496935,500.0,0.00022999,120]
[338656525,1726852497261,500.0,0.00022999,120]
[338656526,1726852497576,500.0,0.00022999,120]
[338656527,1726852497908,500.0,0.00022999,120]
[338656528,1726852497951,500.0,0.00022999,120]
[338656529,1726852498363,500.0,0.00022999,120]
[338656530,1726852498411,500.0,0.00022999,120]
[338656531,1726852498554,500.0,0.00022999,120]
[338656532,1726852498597,500.0,0.00022999,120]
[338656533,1726852498917,500.0,0.00022999,120]
[338656534,1726852498969,500.0,0.00022999,120]
[338656535,1726852499273,500.0,0.00022999,120]
[338656536,1726852499316,500.0,0.00022999,120]
[338656537,1726852499594,500.0,0.00022999,120]
[338656538,1726852499637,500.0,0.00022999,120]
[338656539,1726852499944,500.0,0.00022999,120]
[338656540,1726852500271,500.0,0.00022999,120]
[338656541,1726852500324,500.0,0.00022999,120]
[338656542,1726852500641,430.6,0.00022999,120]
[338656543,1726852500689,335.85,0.00022999,120]
[338656544,1726852508686,500.0,0.00022999,120]
[338656545,1726852508840,186.07385317,0.00022999,120]
[338656546,1726852511674,500.0,0.00022999,120]
[338656547,1726852511999,500.0,0.00022999,120]
[338656548,1726852512321,237.38111614,0.00022999,120]
[338656549,1726852525525,500.0,0.00022999,120]
[338656550,1726852525849,499.81446916,0.00022999,120]
[338656551,1726852532074,501.55984767,0.00022999,120]
[338656552,1726852542282,351.50372389,0.00022999,120]
[338656553,1726852544555,501.5657508,0.00022999,120]
[338656554,1726852546050,414.0,0.0001203,2]
[338656555,1726852557874,622.30778214,0.00022999,120]
[338656556,1726852577457,527.53348243,0.00022999,120]
[338656557,1726852627960,500.0,0.00022999,120]
[338656558,1726852628280,500.0,0.00022999,120]
[338656559,1726852628628,500.0,0.00022999,120]
[338656560,1726852628941,624.72,0.00022999,120]
[338656561,1726852631581,500.0,0.00022999,120]
[338656562,1726852643499,500.0,0.00022999,120]
[338656563,1726852643878,500.0,0.00022999,120]
[338656564,1726852644188,293.56,0.00022999,120]
[338656565,1726852647074,500.0,0.00022999,120]
[338656566,1726852647384,481.09,0.00022999,120]
[338656567,1726852657589,501.07905393,0.00022999,120]
[338656568,1726852662715,500.0,0.00022999,120]
[338656569,1726852663018,279.58046734,0.00022999,120]
[338656570,1726852665754,607.79693896,0.00022999,120]
[338656571,1726852668403,501.04045695,0.00022999,120]
[338656572,1726852689242,500.0,0.00022999,120]
[338656573,1726852689555,500.0,0.00022999,120]
[338656574,1726852689883,500.0,0.00022999,120]
[338656575,1726852690206,469.43975084,0.00022999,120]
[338656576,1726852692837,500.90431567,0.00022999,120]
[338656577,1726852702048,500.84056823,0.00022999,120]
[338656578,1726852719683,501.56835831,0.00022999,120]
[338656579,1726852725009,500.0,0.00022999,120]
[338656580,1726852725347,560.82207357,0.00022999,120]
[338656581,1726852727335,500.0,0.00022999,120]
[338656582,1726852735898,500.0,0.00022999,120]
[338656583,1726852738168,501.12953816,0.00022999,120]
[338656584,1726852747090,500.0,0.00022999,120]
[338656585,1726852747416,427.19,0.00022999,120]
[338656586,1726852750456,500.0,0.00022999,120]
[338656587,1726852752246,500.0,0.00022999,120]
[338656588,1726852752572,500.0,0.00022999,120]
[338656589,1726852752894,500.0,0.00022999,120]
[338656590,1726852753210,500.0,0.00022999,120]
[338656591,1726852753536,500.0,0.00022999,120]
[338656592,1726852753731,500.0,0.00022999,120]
[338656593,1726852753870,500.0,0.00022999,120]
[338656594,1726852754074,500.0,0.00022999,120]
[338656595,1726852754194,500.0,0.00022999,120]
[338656596,1726852754411,627.22,0.00022999,120]
[338656597,1726852754731,500.0,0.00022999,120]
[338656598,1726852755093,500.0,0.00022999,120]
[338656599,1726852755461,500.0,0.00022999,120]
[338656600,1726852761265,500.0,0.00012,5]
[338656601,1726852798222,1050.0,0.00011,2]
[338656602,1726852809300,500.0,0.00022999,120]
[338656603,1726852809767,500.0,0.00022999,120]
[338656604,1726852810000,500.0,0.00022999,120]
[338656605,1726852810365,293.04670344,0.00022999,120]
[338656607,1726852817719,500.0,0.00022999,120]
[338656608,1726852818071,500.0,0.00022999,120]
[338656609,1726852818434,152.19215097,0.00022999,120]
[338656610,1726852824305,649.50913181,0.00022999,120]
[338656611,1726852826949,500.56469286,0.00022999,120]
[338656612,1726852829403,500.0,0.00022999,120]
[338656613,1726852829716,621.48140158,0.00022999,120]
[338656614,1726852833721,500.0,0.00022999,120]
[338656623,1726852968652,157.44845671,0.00022999,120]
[338656624,1726852971386,500.0,0.00022999,120]
[338656625,1726852971713,389.67,0.00022999,120]
[338656626,1726852974701,500.0,0.00022999,120]
[338656627,1726852975034,500.0,0.00022999,120]
[338656628,1726852975357,634.07,0.00022999,120]
[338656629,1726852980317,500.0,0.00022999,120]
[338656630,1726852980632,500.0,0.00022999,120]
[338656631,1726852980903,500.0,0.00022999,120]
[338656632,1726852981244,500.0,0.00022999,120]
[338656633,1726852981674,362.81962672,0.00022999,120]
[338656634,1726852984531,500.0,0.00022999,120]
[338656635,1726852984854,500.0,0.00022999,120]
[338656636,1726852985201,500.0,0.00022999,120]
[338656637,1726852985538,500.0,0.00022999,120]
[338656638,1726852985901,500.0,0.00022999,120]
[338656639,1726852986215,500.0,0.00022999,120]
[338656640,1726852986565,500.0,0.00022999,120]
[338656641,1726852986893,500.0,0.00022999,120]
[338656642,1726852987228,500.0,0.00022999,120]
[338656643,1726852987543,247.53,0.00022999,120]
[338656644,1726852990391,500.0,0.00022999,120]
[338656645,1726852991057,500.0,0.00022999,120]
[338656646,1726852991396,500.0,0.00022999,120]
[338656647,1726852991726,160.06,0.00022999,120]
[338656648,1726853023548,171.18,0.00010959,2]
[338656649,1726853061168,153.62,0.000149,31]
[338656650,1726853061204,153.62,0.000149,31]
[338656651,1726853061254,153.62,0.000149,31]
[338656652,1726853061355,153.62,0.000149,31]
[338656653,1726853061391,153.62,0.000149,31]
[338656654,1726853061448,153.62,0.000149,31]
[338656655,1726853061510,153.62,0.000149,31]
[338656656,1726853091249,3000.0,0.00022999,120]
[338656657,1726853235476,501.01817251,0.00022999,120]
[338656658,1726853250277,500.0,0.00022999,120]
[338656659,1726853250597,536.42,0.00022999,120]
[338656660,1726853258037,568.03,0.00022999,120]
[338656662,1726853289113,1926.03,0.0001202,2]
[338656664,1726853325574,293.58,0.00010095,2]
[338656666,1726853353439,500.0,0.00022999,120]
[338656667,1726853353750,320.89937684,0.00022999,120]
[338656668,1726853360246,1000.0,0.00012019,2]
[338656692,1726853432007,-1000.3666689,0.00012046,2]
[338656693,1726853432018,-288.66117,0.00012046,2]
[338656694,1726853432051,1500.0,0.00012024,2]
[338656695,1726853432063,-122.6421611,0.00012046,2]
[338656696,1726853432073,-220.07,0.00012082,2]
[338656697,1726853432082,-234.8662037,0.00012084,2]
[338656698,1726853432099,-15.1337963,0.00012084,2]
[338656699,1726853432109,-2026.5602,0.00012316,2]
[338656700,1726853432120,-293.58,0.00012359,2]
[338656701,1726853432130,-1073.301799,0.00012815,2]
[338656702,1726853432139,-310.328,0.0001288,2]
[338656703,1726853432149,-500.0,0.00012896,2]
[338656704,1726853432159,-200.0,0.00012896,2]
[338656705,1726853432169,-150.99,0.00012899,2]
[338656706,1726853432178,-150.0,0.00012899,2]
[338656707,1726853432188,-2393.55,0.00012899,2]
[338656708,1726853432198,-2828.70869732,0.000129,2]
[338656709,1726853432211,-447.4527507,0.000129,2]
[338656710,1726853432228,-4110.48365198,0.000129,2]
[338656711,1726853432238,-8818.5755,0.000129,2]
[338656712,1726853432248,-2351.94,0.000129,2]
[338656713,1726853432257,-44375.4255,0.000129,2]
[338656714,1726853432267,-173.374,0.000129,2]
[338656715,1726853432277,-463.52437155,0.000129,2]
[338656716,1726853432287,-167.49323267,0.000129,2]
[338656717,1726853432297,-10986.39,0.000129,2]
[338656718,1726853432307,-2985.62,0.000129,2]
[338656719,1726853432317,-2365.3,0.00012904,2]
[338656720,1726853432326,-518.4388,0.00012935,2]
[338656721,1726853432341,-253.396,0.00012965,2]
[338656722,1726853432350,-184.955,0.00012965,2]
[338656723,1726853432359,-500.0,0.00012973,2]
[338656724,1726853432368,-177.8,0.0001299,2]
[338656725,1726853432378,-499.99,0.00012996,2]
[338656726,1726853432389,-293.2747514,0.00012996,2]
[338656727,1726853432398,-407.8603518,0.00012996,2]
[338656728,1726853432407,-301.7599016,0.00012996,2]
[338656729,1726853432417,-974.6599064,0.00012996,2]
[338656730,1726853432426,-9308.02162126,0.00012997,2]
[338656731,1726853432435,-384.05071732,0.00012999,2]
[338656732,1726853432445,-500.0,0.00012999,2]
[338656733,1726853432455,-500.0,0.00012999,2]
[338656734,1726853432464,-286.1992303,0.00012999,2]
[338656735,1726853432474,-500.0,0.00012999,2]
[338656736,1726853432484,-500.00000001,0.00012999,2]
[338656737,1726853432494,-623.30837792,0.00012999,2]
[338656738,1726853432503,-1324.674,0.00013,2]
[338656739,1726853432513,-525.0,0.00013,2]
[338656740,1726853432527,-114456.05752863,0.00013,2]
[338656741,1726853432536,-2884364.82867655,0.00013,2]
[338656746,1726853437627,-41478.2762776,0.00013,2]
[338656748,1726853437640,-584765.80717023,0.00013,2]
[338656749,1726853437745,-299.25,0.00013,2]
[338656750,1726853437805,-10790.81310902,0.00013,2]
[338656751,1726853437816,-3589.14041577,0.00013,2]
[338656752,1726853437827,-511.67571096,0.00013,2]
[338656756,1726853439573,-899.71726207,0.00013,2]
[338656758,1726853439584,-5794.33161275,0.00013,2]
[338656760,1726853439596,-298.31412405,0.00013,2]
[338656762,1726853439607,-527.39556223,0.00013,2]
[338656763,1726853439617,-292.036,0.00013,2]
[338656764,1726853439642,-352.75909744,0.00013,2]
[338656765,1726853439654,-338.47199479,0.00013,2]
[338656766,1726853439665,-1393.74603168,0.00013,2]
[338656767,1726853439678,-944.8006735,0.00013,2]
[338656768,1726853439689,-15607.50524251,0.00013,2]
[338656769,1726853439700,-1391.73850551,0.00013,2]
[338656770,1726853439711,-2961.95,0.00013,2]
[338656771,1726853439722,-707.12336694,0.00013,2]
[338656772,1726853439733,-342.108,0.00013,2]
[338656773,1726853439743,-147173.81037749,0.00013,2]
[338656774,1726853439754,-1067.39875399,0.00013,2]
[338656775,1726853439767,-387.72733961,0.00013,2]
[338656776,1726853439780,-4905.37844259,0.00013,2]
[338656777,1726853439792,-8576.54159867,0.00013,2]
[338656778,1726853439805,-1109.54057501,0.00013,2]
[338656779,1726853439848,-794.9024436,0.00013,2]
[338656780,1726853439859,-18918.55938786,0.00013,2]
[338657036,1726853442896,-511.13840494,0.000129,2]
[338657038,1726853442907,-500.0,0.000129,2]
[338657044,1726853442956,-1264.43750875,0.000129,2]
[338657046,1726853442965,-353614.74385226,0.00013,2]
[338657282,1726853445610,-624.09688597,0.00013,2]
[338657289,1726853445670,-552.86,0.00013,2]
[338657921,1726853607279,155.99,0.00012028,2]
[338657922,1726853667271,153.63,0.000149,31]
[338657923,1726853667312,153.63,0.000149,31]
[338657924,1726853667381,153.63,0.000149,31]
[338657925,1726853667442,153.63,0.000149,31]
[338657926,1726853667499,153.63,0.000149,31]
[338657927,1726853667558,153.63,0.000149,31]
[338657928,1726853667615,153.63,0.000149,31]
[338657929,1726853729383,158.31,0.00010959,2]
[338657930,1726853755861,14765.4297,0.00011956,2]
[338657931,1726853817148,11433.76,0.00011995,2]
[338657932,1726853902501,284.78,0.00010051,2]
[338657933,1726853949194,200.0,0.0001193,2]
[338657934,1726853953320,349.2404,0.00011956,2]
[338657935,1726853975650,1500.0,0.0001193,2]
[338657936,1726854028212,1870.74,0.00011918,2]